Workbook

Sheet correction ex 1 et 2
A2: Identification du sujet : | B2: ='Fiche d''évaluation'!C3 -> sujet 2 | E2: Grille de correction sujet E3C sciences de l'ingénieur
A3: Session : | B3: ='Fiche d''évaluation'!C4 -> 2019
A4: Date de l'évaluation : | B4: ='Fiche d''évaluation'!C5 -> 43764 | E4: =IF('Description des compétences'!$F$42=1,L5,"") -> 
L5: SUJET NON CONFORME MOINS DE 50% DES COMPÉTENCES ÉVALUÉES
D6: Niv. | E6: Description de l'attendu à la question | F6: Attribution | J6: Niv. | K6: Description de l'attendu à la question | L6: Attribution
B7: Exercice n°1 Performance d'un produit | C7: Question n°1 | D7: Non Traité | G7: =IF(COUNTBLANK(F7),0,1) -> 0 | H7: Exercice n°2 Contrôle commande d'un produit et informatique | I7: Question n°1 | J7: Non Traité | M7: =IF(COUNTBLANK(L7),0,1) -> 0
D8: 0 | E8: Aucune des réponses justes | G8: =IF(COUNTBLANK(F8),0,1) -> 0 | J8: 0 | K8: Aucune association d'une figure LEVEL | M8: 0
D9: 1 | E9: Relation exacte et calcul de la norme vitesse fausse sans unité | G9: 0 | J9: 1 | K9: Association d'une figure LEVEL | M9: 0
D10: 2 | E10: Relation exacte et calcul de la norme vitesse fausse unité juste | G10: 0 | J10: 2 | K10: Association de 2 figures LEVEL | M10: 0
D11: 3 | E11: Relation exacte et calcul de la norme vitesse juste avec les unités | G11: 0 | J11: 3 | K11: Association de 3 figures LEVEL + justification | M11: 0 | N11: =SUM(G7:G11) -> 0 | O11: =SUM(M7:M11) -> 0
C12: Question n°2 | D12: Non Traité | G12: 0 | I12: Question n°2 | J12: Non Traité | M12: 0
D13: 0 | E13: Aucune des réponses justes | G13: 0 | J13: 0 | K13: Sens de rotation faux et pas de détermination du nombre d'impulsions | M13: 0
D14: 1 | E14: Relation exacte et calcul de la norme vitesse fausse sans unité | G14: 0 | J14: 1 | K14: Sens de rotation faux et détermination du nombre d'impulsions | M14: 0
D15: 2 | E15: Relation exacte et calcul de la norme vitesse fausse unité juste | G15: 0 | J15: 2 | K15: Sens de rotation juste et pas de détermination du nombre d'impulsions | M15: 0
D16: 3 | E16: Relation exacte et calcul de la norme vitesse juste avec les unités | G16: 0 | J16: 3 | K16: Sens de rotation juste et détermination du nombre d'impulsions | M16: 0 | N16: =SUM(G12:G16) -> 0 | O16: =SUM(M12:M16) -> 0
C17: Question n°3 | D17: Non Traité | G17: =IF(COUNTBLANK(F17),0,1) -> 0 | I17: Question n°3 | J17: Non Traité | M17: 0
D18: 0 | E18: Norme de l'action mécanique est mal exprimée (sans unité) et la puissance fausse. | G18: 0 | J18: 0 | K18: Pas de chronogramme tracé | M18: 0
D19: 1 | E19: Norme de l'action mécanique correcte, mais la puissance n'est pas correctement calculée | G19: 0 | J19: 1 | K19: Chronogramme impulsion juste et chronogramme angle faux | M19: 0
D20: 2 | E20: Norme de l'action mécanique correcte et la relation pour calculer la puissance correcte, mais l'application numérique fausse | G20: 0 | J20: 2 | K20: Chronogramme impulsion faux et chronogramme angle juste | M20: 0
D21: 3 | E21: Norme de l'action mécanique correcte et la puissance sont correctement calculées. | G21: 0 | J21: 3 | K21: Chronogramme impulsion juste et chronogramme angle juste | M21: 0 | N21: =SUM(G17:G21) -> 0 | O21: =SUM(M17:M21) -> 0
C22: Question n°4 | D22: Non Traité | G22: 0 | I22: Question n°4 | J22: Non Traité | M22: 0
D23: 0 | E23: Expression du rapport de transmission fausse ,pas de calcul, détermination de la vitesse angulaire fausse | G23: 0 | J23: 0 | K23: Pas de justification du capteur et pas de calcul sur la précision | M23: 0
D24: 1 | E24: Expression du rapport de transmission et le calcul, détermination de la vitesse angulaire (1 élément juste parmi les 3) | G24: 0 | J24: 1 | K24: Justification juste et calcul de la précision fausse | M24: 0
D25: 2 | E25: Expression du rapport de transmission et le calcul, détermination de la vitesse angulaire (2 éléments juste parmi les 3) | G25: 0 | J25: 2 | K25: Justification de l'utilisation de ce capteur et calcul de la précision juste | M25: 0
D26: 3 | E26: Expression du rapport de transmission et le calcul, détermination de la vitesse angulaire | G26: 0 | J26: 3 | K26: Justification de l'utilisation de ce capteur et calcul sur la précision en degré pour 1 bit | M26: 0 | N26: =SUM(G22:G26) -> 0 | O26: =SUM(M22:M26) -> 0
C27: Question n°5 | D27: Non Traité | G27: 0 | I27: Question n°5 | J27: Non Traité | M27: 0
D28: 0 | E28: Aucun calcul: moment, aire des ailettes et puissance | G28: 0 | J28: 0 | K28: Pas de calcul des tensions , pas de relation littérale pas de détermination de N | M28: 0
D29: 1 | E29: Calcul de l'aire faux donc calcul erroné pour le moment et donc calcul de la puissance fausse | G29: 0 | J29: 1 | K29: Calcul des tensions ,relation littérale, détermination de N (1 élément juste parmi les 3) | M29: 0
D30: 2 | E30: Calcul de l'aire juste calcul (juste ou faux) pour le moment, calcul de la puissance fausse | G30: 0 | J30: 2 | K30: Calcul des tensions ,relation littérale, détermination de N (2 éléments juste parmi les 3) | M30: 0
D31: 3 | E31: Calcul du moment de l'aire des ailettes et de la puissance justes | G31: 0 | J31: 3 | K31: Calcul des tensions , relation littérale et détermination de N | M31: 0 | N31: =SUM(G27:G31) -> 0 | O31: =SUM(M27:M31) -> 0
C32: Question n°6 | D32: Non Traité | G32: 0 | I32: Question n°6 | J32: Non Traité | M32: 0
D33: 0 | G33: 0 | J33: 0 | K33: Pas de conclusion pas de proposition pour augmenter la précision | M33: 0
D34: 1 | G34: 0 | J34: 1 | K34: Conclusion non argumentée ou proposition pour augmenter la précision | M34: 0
D35: 2 | G35: 0 | J35: 2 | K35: Conclusion non argumentée et proposition pour augmenter la précision | M35: 0
D36: 3 | G36: 0 | J36: 3 | K36: Conclusion argumentée avec écarts entre les deux solutions et proposition pour augmenter la précision | M36: =IF(COUNTBLANK(L36),0,1) -> 0 | N36: =SUM(G32:G36) -> 0 | O36: =SUM(M32:M36) -> 0
F38: question 1 | G38: =IF(G7=1,0,IF(G8=1,0,IF(G9=1,1,IF(G10=1,2,IF(G11=1,3,0))))) -> 0 | L38: question 1 | M38: =IF(M7=1,0,IF(M8=1,0,IF(M9=1,1,IF(M10=1,2,IF(M11=1,3,0))))) -> 0
F39: question 2 | G39: =IF(G12=1,0,IF(G13=1,0,IF(G14=1,1,IF(G15=1,2,IF(G16=1,3,0))))) -> 0 | L39: question 2 | M39: =IF(M12=1,0,IF(M13=1,0,IF(M14=1,1,IF(M15=1,2,IF(M16=1,3,0))))) -> 0
F40: question 3 | G40: =IF(G17=1,0,IF(G18=1,0,IF(G19=1,1,IF(G20=1,2,IF(G21=1,3,0))))) -> 0 | L40: question 3 | M40: =IF(M17=1,0,IF(M18=1,0,IF(M19=1,1,IF(M20=1,2,IF(M21=1,3,0))))) -> 0
F41: question 4 | G41: =IF(G22=1,0,IF(G23=1,0,IF(G24=1,1,IF(G25=1,2,IF(G26=1,3,0))))) -> 0 | L41: question 4 | M41: =IF(M22=1,0,IF(M23=1,0,IF(M24=1,1,IF(M25=1,2,IF(M26=1,3,0))))) -> 0
F42: question 5 | G42: =IF(G27=1,0,IF(G28=1,0,IF(G29=1,1,IF(G30=1,2,IF(G31=1,3,0))))) -> 0 | L42: question 5 | M42: =IF(M27=1,0,IF(M28=1,0,IF(M29=1,1,IF(M30=1,2,IF(M31=1,3,0))))) -> 0
F43: question 6 | G43: =IF(G32=1,0,IF(G33=1,0,IF(G34=1,1,IF(G35=1,2,IF(G36=1,3,0))))) -> 0 | L43: question 6 | M43: =IF(M32=1,0,IF(M33=1,0,IF(M34=1,1,IF(M35=1,2,IF(M36=1,3,0))))) -> 0
F44: condition NT | G44: =IF((G7*G12*G17*G22*G27*G32)=1,1,0) -> 0 | L44: condition NT | M44: =IF((M7*M12*M17*M22*M27*M32)=1,1,0) -> 0

Sheet Fiche d'évaluation
A1: Baccalauréat Général
A2: Spécialité sciences de l'ingénieur
A3: Identification du sujet : | C3: sujet 2 | D3: =' correction ex 1 et 2 '!E4 -> 
A4: Session : | C4: 2019 | E4: N° d'anonymat :
A5: Date de l'évaluation : | C5: =TODAY() -> 2019-10-26
J6: Ex. 1 | K6: Ex. 2
B7: ANALYSER | C7: A.1 | D7: Analyser le besoin d’un produit par une démarche d’ingénierie système | G7: ='Description des compétences'!S11 -> 0.03846153846 | H7: 1 | J7: =IF('Description des compétences'!$Y11=0,"NE",'Description des compétences'!$AG11) -> 0 | K7: =IF('Description des compétences'!$Z11=0,"NE",'Description des compétences'!$AP11) -> NE
C8: A.2 | D8: Analyser l’organisation matérielle d’un produit par une démarche d’ingénierie système | G8: ='Description des compétences'!S12 -> 0.1009615385 | H8: NE | J8: =IF('Description des compétences'!$Y12=0,"NE",'Description des compétences'!$AG12) -> 0 | K8: =IF('Description des compétences'!$Z12=0,"NE",'Description des compétences'!$AP12) -> 0
C9: A.3 | D9: Analyser l’organisation fonctionnelle d’un produit par une démarche d’ingénierie système | G9: ='Description des compétences'!S13 -> 0.0625 | H9: 1 | J9: =IF('Description des compétences'!$Y13=0,"NE",'Description des compétences'!$AG13) -> NE | K9: =IF('Description des compétences'!$Z13=0,"NE",'Description des compétences'!$AP13) -> 0
C10: A.4 | D10: Caractériser la puissance nécessaire au fonctionnement d’un produit ou un système | G10: ='Description des compétences'!S14 -> 0.07692307692 | H10: 1 | J10: =IF('Description des compétences'!$Y14=0,"NE",'Description des compétences'!$AG14) -> 0 | K10: =IF('Description des compétences'!$Z14=0,"NE",'Description des compétences'!$AP14) -> NE
C11: A.5 | D11: Caractériser l’énergie nécessaire au fonctionnement d’un produit ou un système | G11: ='Description des compétences'!S15 -> 0 | H11: 1 | J11: =IF('Description des compétences'!$Y15=0,"NE",'Description des compétences'!$AG15) -> NE | K11: =IF('Description des compétences'!$Z15=0,"NE",'Description des compétences'!$AP15) -> NE
C12: A.6 | D12: Repérer les échanges d’énergie sur un diagramme structurel | G12: ='Description des compétences'!S16 -> 0 | H12: 0.3333333333 | J12: =IF('Description des compétences'!$Y16=0,"NE",'Description des compétences'!$AG16) -> NE | K12: =IF('Description des compétences'!$Z16=0,"NE",'Description des compétences'!$AP16) -> NE
C13: A.7 | D13: Analyser les principaux protocoles pour un réseau de communication | G13: ='Description des compétences'!S17 -> 0 | H13: 1 | J13: =IF('Description des compétences'!$Y17=0,"NE",'Description des compétences'!$AG17) -> NE | K13: =IF('Description des compétences'!$Z17=0,"NE",'Description des compétences'!$AP17) -> NE
C14: A.8 | D14: Analyser les principaux les supports matériels (pour les réseaux) | G14: ='Description des compétences'!S18 -> 0 | H14: NE | J14: =IF('Description des compétences'!$Y18=0,"NE",'Description des compétences'!$AG18) -> NE | K14: =IF('Description des compétences'!$Z18=0,"NE",'Description des compétences'!$AP18) -> NE
C15: A.9 | D15: Quantifier les écarts de performance entre les valeurs attendues, mesurées, simulées | G15: ='Description des compétences'!S19 -> 0.03846153846 | H15: 1 | J15: =IF('Description des compétences'!$Y19=0,"NE",'Description des compétences'!$AG19) -> 0 | K15: =IF('Description des compétences'!$Z19=0,"NE",'Description des compétences'!$AP19) -> NE
I16: Note "analyser" | J16: =SUM(J7:J15) -> 0 | K16: =SUM(K7:K15) -> 0
B18: MODÉLISER ET RÉSOUDRE | C18: M&R.1 | D18: Proposer et justifier des hypothèses ou simplification en vue d’une modélisation | G18: ='Description des compétences'!S20 -> 0.03846153846 | H18: 1 | J18: =IF('Description des compétences'!$Y20=0,"NE",'Description des compétences'!$AG20) -> 0 | K18: =IF('Description des compétences'!$Z20=0,"NE",'Description des compétences'!$AP20) -> NE
C19: M&R.2 | D19: Caractériser les grandeurs physiques en entrées/sorties d’un modèle multiphysique traduisant la transmission de puissance | G19: ='Description des compétences'!S21 -> 0.03846153846 | H19: 0.3333333333 | J19: =IF('Description des compétences'!$Y21=0,"NE",'Description des compétences'!$AG21) -> 0 | K19: =IF('Description des compétences'!$Z21=0,"NE",'Description des compétences'!$AP21) -> NE
C20: M&R.3 | D20: Associer un modèle aux composants d’une chaîne de puissance | G20: ='Description des compétences'!S22 -> 0.03846153846 | H20: 1 | J20: =IF('Description des compétences'!$Y22=0,"NE",'Description des compétences'!$AG22) -> 0 | K20: =IF('Description des compétences'!$Z22=0,"NE",'Description des compétences'!$AP22) -> NE
C21: M&R.4 | D21: Traduire le comportement attendu ou observé d’un objet par une structure algorithmique | G21: ='Description des compétences'!S23 -> 0.0625 | H21: 0.3333333333 | J21: =IF('Description des compétences'!$Y23=0,"NE",'Description des compétences'!$AG23) -> NE | K21: =IF('Description des compétences'!$Z23=0,"NE",'Description des compétences'!$AP23) -> 0
C22: M&R.5 | D22: Traduire le comportement attendu ou observé d’un objet par un diagramme d'états-transitions | G22: ='Description des compétences'!S24 -> 0 | H22: 1 | J22: =IF('Description des compétences'!$Y24=0,"NE",'Description des compétences'!$AG24) -> NE | K22: =IF('Description des compétences'!$Z24=0,"NE",'Description des compétences'!$AP24) -> NE
C23: M&R.6 | D23: Modéliser sous une forme graphique une structure, un mécanisme, un circuit | G23: ='Description des compétences'!S25 -> 0 | H23: 0.3333333333 | J23: =IF('Description des compétences'!$Y25=0,"NE",'Description des compétences'!$AG25) -> NE | K23: =IF('Description des compétences'!$Z25=0,"NE",'Description des compétences'!$AP25) -> NE
C24: M&R.7 | D24: Modéliser les mouvements | G24: ='Description des compétences'!S26 -> 0.03846153846 | H24: 1 | J24: =IF('Description des compétences'!$Y26=0,"NE",'Description des compétences'!$AG26) -> 0 | K24: =IF('Description des compétences'!$Z26=0,"NE",'Description des compétences'!$AP26) -> NE
C25: M&R.8 | D25: Modéliser les actions mécaniques | G25: ='Description des compétences'!S27 -> 0.07692307692 | H25: 1 | J25: =IF('Description des compétences'!$Y27=0,"NE",'Description des compétences'!$AG27) -> 0 | K25: =IF('Description des compétences'!$Z27=0,"NE",'Description des compétences'!$AP27) -> NE
C26: M&R.9 | D26: Caractériser les échanges d’informations | G26: ='Description des compétences'!S28 -> 0.0625 | H26: 1 | J26: =IF('Description des compétences'!$Y28=0,"NE",'Description des compétences'!$AG28) -> NE | K26: =IF('Description des compétences'!$Z28=0,"NE",'Description des compétences'!$AP28) -> 0
C27: M&R.10 | D27: Associer un modèle à un système asservi | G27: ='Description des compétences'!S29 -> 0 | H27: 1 | J27: =IF('Description des compétences'!$Y29=0,"NE",'Description des compétences'!$AG29) -> NE | K27: =IF('Description des compétences'!$Z29=0,"NE",'Description des compétences'!$AP29) -> NE
C28: M&R.11 | D28: Déterminer les grandeurs flux (courant) et effort (tension) dans un circuit électrique | G28: ='Description des compétences'!S30 -> 0.0625 | H28: 1 | J28: =IF('Description des compétences'!$Y30=0,"NE",'Description des compétences'!$AG30) -> NE | K28: =IF('Description des compétences'!$Z30=0,"NE",'Description des compétences'!$AP30) -> 0
C29: M&R.12 | D29: Déterminer les grandeurs géométriques et cinématiques d’un mécanisme | G29: ='Description des compétences'!S31 -> 0.03846153846 | H29: 0.3333333333 | J29: =IF('Description des compétences'!$Y31=0,"NE",'Description des compétences'!$AG31) -> 0 | K29: =IF('Description des compétences'!$Z31=0,"NE",'Description des compétences'!$AP31) -> NE
I30: Note "modéliser et résoudre" | J30: =SUM(J18:J29) -> 0 | K30: =SUM(K18:K29) -> 0
B32: EXPÉRIMENTER ET SIMULER | C32: E&S.1 | D32: Prévoir l’ordre de grandeur de la mesure | G32: ='Description des compétences'!S32 -> 0.1009615385 | H32: 1 | J32: =IF('Description des compétences'!$Y32=0,"NE",'Description des compétences'!$AG32) -> 0 | K32: =IF('Description des compétences'!$Z32=0,"NE",'Description des compétences'!$AP32) -> 0
C33: E&S.2 | D33: Identifier les erreurs de mesure | G33: ='Description des compétences'!S33 -> 0.0625 | H33: 1 | J33: =IF('Description des compétences'!$Y33=0,"NE",'Description des compétences'!$AG33) -> NE | K33: =IF('Description des compétences'!$Z33=0,"NE",'Description des compétences'!$AP33) -> 0
C34: E&S.3 | D34: Relever les grandeurs caractéristiques d’un protocole de communication | G34: ='Description des compétences'!S34 -> 0 | H34: NE | J34: =IF('Description des compétences'!$Y34=0,"NE",'Description des compétences'!$AG34) -> NE | K34: =IF('Description des compétences'!$Z34=0,"NE",'Description des compétences'!$AP34) -> NE
I35: Note "expérimenter et simuler" | J35: =SUM(J32:J34) -> 0 | K35: =SUM(K32:K34) -> 0
B37: COMMUNIQUER | C37: C.1 | D37: Rendre compte des résultats | G37: ='Description des compétences'!S35 -> 0.0625 | H37: 0.3333333333 | J37: =IF('Description des compétences'!$Y35=0,"NE",'Description des compétences'!$AG35) -> NE | K37: =IF('Description des compétences'!$Z35=0,"NE",'Description des compétences'!$AP35) -> 0
I38: Note "communiquer" | J38: ='Description des compétences'!AG355 -> 0 | K38: =SUM(K37) -> 0
B39: Appréciations globales
G40: Note Total Ex.1 | J40: =IF('Description des compétences'!F42=1,"!",SUM(J7:J15,J18:J29,J32:J34,J37)) -> 0
G41: Note Total Ex. 2 | K41: =IF('Description des compétences'!$F$42=1,"!",SUM(K7:K15,K18:K29,K32:K34,K37)) -> 0
I43: Note brute sur 20 obtenue par calcul automatique : | J43: =IF('Description des compétences'!$F$42=1,"!",ROUNDUP(SUM(J40,K41),1)) -> 0
I44: Note sur 20 proposée par les correcteurs:
B45: Nom et Prénom des correcteurs | E45: Signature

Sheet Description des compétences
F9: EXERCICE 1 | L9: EXERCICE 2 | R9: Indicateur rouge si évaluée 2 fois, Vert si évaluée 1 fois; orange si non évaluée | S9: Poids de la compétence dans l'évaluation | AA9: Calcul Question Exercice 1 | AI9: Calcul Question Exercice 2
B10: Compétences | D10: Compétences développées détaillées | F10: Q1 | G10: Q2 | H10: Q3 | I10: Q4 | J10: Q5 | K10: Q6 | L10: Q1 | M10: Q2 | N10: Q3 | O10: Q4 | P10: Q5 | Q10: Q6 | AA10: Q1 | AB10: Q2 | AC10: Q3 | AD10: Q4 | AE10: Q6 | AF10: Q6 | AJ10: Q1 | AK10: Q2 | AL10: Q3 | AM10: Q4 | AN10: Q6 | AO10: Q6
B11: ANALYSER | C11: A.1 | D11: Analyser le besoin d’un produit par une démarche d’ingénierie système | J11: 1 | S11: =((Y11+Z11)*5)/100 -> 0.03846153846 | T11: =12-COUNTBLANK(F11:Q11) -> 1 | U11: =IF(T11>0,1,0) -> 1 | Y11: =(SUM(F11:K11)/$C$36)*10 -> 0.7692307692 | Z11: =(SUM(L11:Q11)/$S$36)*10 -> 0 | AA11: =(F11/$C$36)*' correction ex 1 et 2 '!$G$38 -> 0 | AB11: =(G11/$C$36)*' correction ex 1 et 2 '!$G$39 -> 0 | AC11: =(H11/$C$36)*' correction ex 1 et 2 '!$G$40 -> 0 | AD11: =(I11/$C$36)*' correction ex 1 et 2 '!$G$41 -> 0 | AE11: =(J11/$C$36)*' correction ex 1 et 2 '!$G$42 -> 0 | AF11: =(K11/$C$36)*' correction ex 1 et 2 '!$G$43 -> 0 | AG11: =((SUM(AA11:AF11))/3)*10 -> 0 | AJ11: =(L11/$S$36)*' correction ex 1 et 2 '!$M$38 -> 0 | AK11: =(M11/$S$36)*' correction ex 1 et 2 '!$M$39 -> 0 | AL11: =(N11/$S$36)*' correction ex 1 et 2 '!$M$40 -> 0 | AM11: =(O11/$S$36)*' correction ex 1 et 2 '!$M$41 -> 0 | AN11: =(P11/$S$36)*' correction ex 1 et 2 '!$M$42 -> 0 | AO11: =(Q11/$S$36)*' correction ex 1 et 2 '!$M$43 -> 0 | AP11: =((SUM(AJ11:AO11))/3)*10 -> 0 | AQ11: =SUM(F11:K11) -> 1 | AR11: =SUM(L11:Q11) -> 0
C12: A.2 | D12: Analyser l’organisation matérielle d’un produit par une démarche d’ingénierie système | J12: 1 | L12: 1 | S12: =((Y12+Z12)*5)/100 -> 0.1009615385 | T12: =12-COUNTBLANK(F12:Q12) -> 2 | U12: =IF(T12>0,1,0) -> 1 | Y12: =(SUM(F12:K12)/$C$36)*10 -> 0.7692307692 | Z12: =(SUM(L12:Q12)/$S$36)*10 -> 1.25 | AA12: =(F12/$C$36)*' correction ex 1 et 2 '!$G$38 -> 0 | AB12: =(G12/$C$36)*' correction ex 1 et 2 '!$G$39 -> 0 | AC12: =(H12/$C$36)*' correction ex 1 et 2 '!$G$40 -> 0 | AD12: =(I12/$C$36)*' correction ex 1 et 2 '!$G$41 -> 0 | AE12: =(J12/$C$36)*' correction ex 1 et 2 '!$G$42 -> 0 | AF12: =(K12/$C$36)*' correction ex 1 et 2 '!$G$43 -> 0 | AG12: =((SUM(AA12:AF12))/3)*10 -> 0 | AJ12: =(L12/$S$36)*' correction ex 1 et 2 '!$M$38 -> 0 | AK12: =(M12/$S$36)*' correction ex 1 et 2 '!$M$39 -> 0 | AL12: =(N12/$S$36)*' correction ex 1 et 2 '!$M$40 -> 0 | AM12: =(O12/$S$36)*' correction ex 1 et 2 '!$M$41 -> 0 | AN12: =(P12/$S$36)*' correction ex 1 et 2 '!$M$42 -> 0 | AO12: =(Q12/$S$36)*' correction ex 1 et 2 '!$M$43 -> 0 | AP12: =((SUM(AJ12:AO12))/3)*10 -> 0 | AQ12: =SUM(F12:K12) -> 1 | AR12: =SUM(L12:Q12) -> 1
C13: A.3 | D13: Analyser l’organisation fonctionnelle d’un produit par une démarche d’ingénierie système | M13: 1 | S13: 0.0625 | T13: 1 | U13: 1 | Y13: 0 | Z13: 1.25 | AA13: =(F13/$C$36)*' correction ex 1 et 2 '!$G$38 -> 0 | AB13: =(G13/$C$36)*' correction ex 1 et 2 '!$G$39 -> 0 | AC13: =(H13/$C$36)*' correction ex 1 et 2 '!$G$40 -> 0 | AD13: =(I13/$C$36)*' correction ex 1 et 2 '!$G$41 -> 0 | AE13: =(J13/$C$36)*' correction ex 1 et 2 '!$G$42 -> 0 | AF13: =(K13/$C$36)*' correction ex 1 et 2 '!$G$43 -> 0 | AG13: 0 | AJ13: =(L13/$S$36)*' correction ex 1 et 2 '!$M$38 -> 0 | AK13: =(M13/$S$36)*' correction ex 1 et 2 '!$M$39 -> 0 | AL13: =(N13/$S$36)*' correction ex 1 et 2 '!$M$40 -> 0 | AM13: =(O13/$S$36)*' correction ex 1 et 2 '!$M$41 -> 0 | AN13: =(P13/$S$36)*' correction ex 1 et 2 '!$M$42 -> 0 | AO13: =(Q13/$S$36)*' correction ex 1 et 2 '!$M$43 -> 0 | AP13: 0 | AQ13: 0 | AR13: 1
C14: A.4 | D14: Caractériser la puissance nécessaire au fonctionnement d’un produit ou un système | G14: 1 | I14: 1 | S14: 0.07692307692 | T14: 2 | U14: 1 | Y14: 1.538461538 | Z14: 0 | AA14: =(F14/$C$36)*' correction ex 1 et 2 '!$G$38 -> 0 | AB14: =(G14/$C$36)*' correction ex 1 et 2 '!$G$39 -> 0 | AC14: =(H14/$C$36)*' correction ex 1 et 2 '!$G$40 -> 0 | AD14: =(I14/$C$36)*' correction ex 1 et 2 '!$G$41 -> 0 | AE14: =(J14/$C$36)*' correction ex 1 et 2 '!$G$42 -> 0 | AF14: =(K14/$C$36)*' correction ex 1 et 2 '!$G$43 -> 0 | AG14: 0 | AJ14: =(L14/$S$36)*' correction ex 1 et 2 '!$M$38 -> 0 | AK14: =(M14/$S$36)*' correction ex 1 et 2 '!$M$39 -> 0 | AL14: =(N14/$S$36)*' correction ex 1 et 2 '!$M$40 -> 0 | AM14: =(O14/$S$36)*' correction ex 1 et 2 '!$M$41 -> 0 | AN14: =(P14/$S$36)*' correction ex 1 et 2 '!$M$42 -> 0 | AO14: =(Q14/$S$36)*' correction ex 1 et 2 '!$M$43 -> 0 | AP14: 0 | AQ14: 2 | AR14: 0
C15: A.5 | D15: Caractériser l’énergie nécessaire au fonctionnement d’un produit ou un système | S15: 0 | T15: 0 | U15: 0 | Y15: 0 | Z15: 0 | AA15: =(F15/$C$36)*' correction ex 1 et 2 '!$G$38 -> 0 | AB15: =(G15/$C$36)*' correction ex 1 et 2 '!$G$39 -> 0 | AC15: =(H15/$C$36)*' correction ex 1 et 2 '!$G$40 -> 0 | AD15: =(I15/$C$36)*' correction ex 1 et 2 '!$G$41 -> 0 | AE15: =(J15/$C$36)*' correction ex 1 et 2 '!$G$42 -> 0 | AF15: =(K15/$C$36)*' correction ex 1 et 2 '!$G$43 -> 0 | AG15: 0 | AJ15: =(L15/$S$36)*' correction ex 1 et 2 '!$M$38 -> 0 | AK15: =(M15/$S$36)*' correction ex 1 et 2 '!$M$39 -> 0 | AL15: =(N15/$S$36)*' correction ex 1 et 2 '!$M$40 -> 0 | AM15: =(O15/$S$36)*' correction ex 1 et 2 '!$M$41 -> 0 | AN15: =(P15/$S$36)*' correction ex 1 et 2 '!$M$42 -> 0 | AO15: =(Q15/$S$36)*' correction ex 1 et 2 '!$M$43 -> 0 | AP15: 0 | AQ15: 0 | AR15: 0
C16: A.6 | D16: Repérer les échanges d’énergie sur un diagramme structurel | S16: 0 | T16: 0 | U16: 0 | Y16: 0 | Z16: 0 | AA16: =(F16/$C$36)*' correction ex 1 et 2 '!$G$38 -> 0 | AB16: =(G16/$C$36)*' correction ex 1 et 2 '!$G$39 -> 0 | AC16: =(H16/$C$36)*' correction ex 1 et 2 '!$G$40 -> 0 | AD16: =(I16/$C$36)*' correction ex 1 et 2 '!$G$41 -> 0 | AE16: =(J16/$C$36)*' correction ex 1 et 2 '!$G$42 -> 0 | AF16: =(K16/$C$36)*' correction ex 1 et 2 '!$G$43 -> 0 | AG16: 0 | AJ16: =(L16/$S$36)*' correction ex 1 et 2 '!$M$38 -> 0 | AK16: =(M16/$S$36)*' correction ex 1 et 2 '!$M$39 -> 0 | AL16: =(N16/$S$36)*' correction ex 1 et 2 '!$M$40 -> 0 | AM16: =(O16/$S$36)*' correction ex 1 et 2 '!$M$41 -> 0 | AN16: =(P16/$S$36)*' correction ex 1 et 2 '!$M$42 -> 0 | AO16: =(Q16/$S$36)*' correction ex 1 et 2 '!$M$43 -> 0 | AP16: 0 | AQ16: 0 | AR16: 0
C17: A.7 | D17: Analyser les principaux protocoles pour un réseau de communication | S17: 0 | T17: 0 | U17: 0 | Y17: 0 | Z17: 0 | AA17: =(F17/$C$36)*' correction ex 1 et 2 '!$G$38 -> 0 | AB17: =(G17/$C$36)*' correction ex 1 et 2 '!$G$39 -> 0 | AC17: =(H17/$C$36)*' correction ex 1 et 2 '!$G$40 -> 0 | AD17: =(I17/$C$36)*' correction ex 1 et 2 '!$G$41 -> 0 | AE17: =(J17/$C$36)*' correction ex 1 et 2 '!$G$42 -> 0 | AF17: =(K17/$C$36)*' correction ex 1 et 2 '!$G$43 -> 0 | AG17: 0 | AJ17: =(L17/$S$36)*' correction ex 1 et 2 '!$M$38 -> 0 | AK17: =(M17/$S$36)*' correction ex 1 et 2 '!$M$39 -> 0 | AL17: =(N17/$S$36)*' correction ex 1 et 2 '!$M$40 -> 0 | AM17: =(O17/$S$36)*' correction ex 1 et 2 '!$M$41 -> 0 | AN17: =(P17/$S$36)*' correction ex 1 et 2 '!$M$42 -> 0 | AO17: =(Q17/$S$36)*' correction ex 1 et 2 '!$M$43 -> 0 | AP17: 0 | AQ17: 0 | AR17: 0
C18: A.8 | D18: Analyser les principaux les supports matériels (pour les réseaux) | S18: 0 | T18: 0 | U18: 0 | Y18: 0 | Z18: 0 | AA18: =(F18/$C$36)*' correction ex 1 et 2 '!$G$38 -> 0 | AB18: =(G18/$C$36)*' correction ex 1 et 2 '!$G$39 -> 0 | AC18: =(H18/$C$36)*' correction ex 1 et 2 '!$G$40 -> 0 | AD18: =(I18/$C$36)*' correction ex 1 et 2 '!$G$41 -> 0 | AE18: =(J18/$C$36)*' correction ex 1 et 2 '!$G$42 -> 0 | AF18: =(K18/$C$36)*' correction ex 1 et 2 '!$G$43 -> 0 | AG18: 0 | AJ18: =(L18/$S$36)*' correction ex 1 et 2 '!$M$38 -> 0 | AK18: =(M18/$S$36)*' correction ex 1 et 2 '!$M$39 -> 0 | AL18: =(N18/$S$36)*' correction ex 1 et 2 '!$M$40 -> 0 | AM18: =(O18/$S$36)*' correction ex 1 et 2 '!$M$41 -> 0 | AN18: =(P18/$S$36)*' correction ex 1 et 2 '!$M$42 -> 0 | AO18: =(Q18/$S$36)*' correction ex 1 et 2 '!$M$43 -> 0 | AP18: 0 | AQ18: 0 | AR18: 0
C19: A.9 | D19: Quantifier les écarts de performance entre les valeurs attendues, mesurées, simulées | J19: 1 | S19: 0.03846153846 | T19: 1 | U19: 1 | Y19: 0.7692307692 | Z19: 0 | AA19: =(F19/$C$36)*' correction ex 1 et 2 '!$G$38 -> 0 | AB19: =(G19/$C$36)*' correction ex 1 et 2 '!$G$39 -> 0 | AC19: =(H19/$C$36)*' correction ex 1 et 2 '!$G$40 -> 0 | AD19: =(I19/$C$36)*' correction ex 1 et 2 '!$G$41 -> 0 | AE19: =(J19/$C$36)*' correction ex 1 et 2 '!$G$42 -> 0 | AF19: =(K19/$C$36)*' correction ex 1 et 2 '!$G$43 -> 0 | AG19: 0 | AJ19: =(L19/$S$36)*' correction ex 1 et 2 '!$M$38 -> 0 | AK19: =(M19/$S$36)*' correction ex 1 et 2 '!$M$39 -> 0 | AL19: =(N19/$S$36)*' correction ex 1 et 2 '!$M$40 -> 0 | AM19: =(O19/$S$36)*' correction ex 1 et 2 '!$M$41 -> 0 | AN19: =(P19/$S$36)*' correction ex 1 et 2 '!$M$42 -> 0 | AO19: =(Q19/$S$36)*' correction ex 1 et 2 '!$M$43 -> 0 | AP19: 0 | AQ19: 1 | AR19: 0
B20: MODÉLISER ET RÉSOUDRE | C20: M&R.1 | D20: Proposer et justifier des hypothèses ou simplification en vue d’une modélisation | I20: 1 | S20: 0.03846153846 | T20: 1 | U20: 1 | Y20: 0.7692307692 | Z20: 0 | AA20: =(F20/$C$36)*' correction ex 1 et 2 '!$G$38 -> 0 | AB20: =(G20/$C$36)*' correction ex 1 et 2 '!$G$39 -> 0 | AC20: =(H20/$C$36)*' correction ex 1 et 2 '!$G$40 -> 0 | AD20: =(I20/$C$36)*' correction ex 1 et 2 '!$G$41 -> 0 | AE20: =(J20/$C$36)*' correction ex 1 et 2 '!$G$42 -> 0 | AF20: =(K20/$C$36)*' correction ex 1 et 2 '!$G$43 -> 0 | AG20: 0 | AJ20: =(L20/$S$36)*' correction ex 1 et 2 '!$M$38 -> 0 | AK20: =(M20/$S$36)*' correction ex 1 et 2 '!$M$39 -> 0 | AL20: =(N20/$S$36)*' correction ex 1 et 2 '!$M$40 -> 0 | AM20: =(O20/$S$36)*' correction ex 1 et 2 '!$M$41 -> 0 | AN20: =(P20/$S$36)*' correction ex 1 et 2 '!$M$42 -> 0 | AO20: =(Q20/$S$36)*' correction ex 1 et 2 '!$M$43 -> 0 | AP20: 0 | AQ20: 1 | AR20: 0
C21: M&R.2 | D21: Caractériser les grandeurs physiques en entrées/sorties d’un modèle multiphysique traduisant la transmission de puissance | H21: 1 | S21: 0.03846153846 | T21: 1 | U21: 1 | Y21: 0.7692307692 | Z21: 0 | AA21: =(F21/$C$36)*' correction ex 1 et 2 '!$G$38 -> 0 | AB21: =(G21/$C$36)*' correction ex 1 et 2 '!$G$39 -> 0 | AC21: =(H21/$C$36)*' correction ex 1 et 2 '!$G$40 -> 0 | AD21: =(I21/$C$36)*' correction ex 1 et 2 '!$G$41 -> 0 | AE21: =(J21/$C$36)*' correction ex 1 et 2 '!$G$42 -> 0 | AF21: =(K21/$C$36)*' correction ex 1 et 2 '!$G$43 -> 0 | AG21: 0 | AJ21: =(L21/$S$36)*' correction ex 1 et 2 '!$M$38 -> 0 | AK21: =(M21/$S$36)*' correction ex 1 et 2 '!$M$39 -> 0 | AL21: =(N21/$S$36)*' correction ex 1 et 2 '!$M$40 -> 0 | AM21: =(O21/$S$36)*' correction ex 1 et 2 '!$M$41 -> 0 | AN21: =(P21/$S$36)*' correction ex 1 et 2 '!$M$42 -> 0 | AO21: =(Q21/$S$36)*' correction ex 1 et 2 '!$M$43 -> 0 | AP21: 0 | AQ21: 1 | AR21: 0
C22: M&R.3 | D22: Associer un modèle aux composants d’une chaîne de puissance | H22: 1 | S22: 0.03846153846 | T22: 1 | U22: 1 | Y22: 0.7692307692 | Z22: 0 | AA22: =(F22/$C$36)*' correction ex 1 et 2 '!$G$38 -> 0 | AB22: =(G22/$C$36)*' correction ex 1 et 2 '!$G$39 -> 0 | AC22: =(H22/$C$36)*' correction ex 1 et 2 '!$G$40 -> 0 | AD22: =(I22/$C$36)*' correction ex 1 et 2 '!$G$41 -> 0 | AE22: =(J22/$C$36)*' correction ex 1 et 2 '!$G$42 -> 0 | AF22: =(K22/$C$36)*' correction ex 1 et 2 '!$G$43 -> 0 | AG22: 0 | AJ22: =(L22/$S$36)*' correction ex 1 et 2 '!$M$38 -> 0 | AK22: =(M22/$S$36)*' correction ex 1 et 2 '!$M$39 -> 0 | AL22: =(N22/$S$36)*' correction ex 1 et 2 '!$M$40 -> 0 | AM22: =(O22/$S$36)*' correction ex 1 et 2 '!$M$41 -> 0 | AN22: =(P22/$S$36)*' correction ex 1 et 2 '!$M$42 -> 0 | AO22: =(Q22/$S$36)*' correction ex 1 et 2 '!$M$43 -> 0 | AP22: 0 | AQ22: 1 | AR22: 0
C23: M&R.4 | D23: Traduire le comportement attendu ou observé d’un objet par une structure algorithmique | N23: 1 | S23: 0.0625 | T23: 1 | U23: 1 | Y23: 0 | Z23: 1.25 | AA23: =(F23/$C$36)*' correction ex 1 et 2 '!$G$38 -> 0 | AB23: =(G23/$C$36)*' correction ex 1 et 2 '!$G$39 -> 0 | AC23: =(H23/$C$36)*' correction ex 1 et 2 '!$G$40 -> 0 | AD23: =(I23/$C$36)*' correction ex 1 et 2 '!$G$41 -> 0 | AE23: =(J23/$C$36)*' correction ex 1 et 2 '!$G$42 -> 0 | AF23: =(K23/$C$36)*' correction ex 1 et 2 '!$G$43 -> 0 | AG23: 0 | AJ23: =(L23/$S$36)*' correction ex 1 et 2 '!$M$38 -> 0 | AK23: =(M23/$S$36)*' correction ex 1 et 2 '!$M$39 -> 0 | AL23: =(N23/$S$36)*' correction ex 1 et 2 '!$M$40 -> 0 | AM23: =(O23/$S$36)*' correction ex 1 et 2 '!$M$41 -> 0 | AN23: =(P23/$S$36)*' correction ex 1 et 2 '!$M$42 -> 0 | AO23: =(Q23/$S$36)*' correction ex 1 et 2 '!$M$43 -> 0 | AP23: 0 | AQ23: 0 | AR23: 1
C24: M&R.5 | D24: Traduire le comportement attendu ou observé d’un objet par un diagramme d'états-transitions | S24: 0 | T24: 0 | U24: 0 | Y24: 0 | Z24: 0 | AA24: =(F24/$C$36)*' correction ex 1 et 2 '!$G$38 -> 0 | AB24: =(G24/$C$36)*' correction ex 1 et 2 '!$G$39 -> 0 | AC24: =(H24/$C$36)*' correction ex 1 et 2 '!$G$40 -> 0 | AD24: =(I24/$C$36)*' correction ex 1 et 2 '!$G$41 -> 0 | AE24: =(J24/$C$36)*' correction ex 1 et 2 '!$G$42 -> 0 | AF24: =(K24/$C$36)*' correction ex 1 et 2 '!$G$43 -> 0 | AG24: 0 | AJ24: =(L24/$S$36)*' correction ex 1 et 2 '!$M$38 -> 0 | AK24: =(M24/$S$36)*' correction ex 1 et 2 '!$M$39 -> 0 | AL24: =(N24/$S$36)*' correction ex 1 et 2 '!$M$40 -> 0 | AM24: =(O24/$S$36)*' correction ex 1 et 2 '!$M$41 -> 0 | AN24: =(P24/$S$36)*' correction ex 1 et 2 '!$M$42 -> 0 | AO24: =(Q24/$S$36)*' correction ex 1 et 2 '!$M$43 -> 0 | AP24: 0 | AQ24: 0 | AR24: 0
C25: M&R.6 | D25: Modéliser sous une forme graphique une structure, un mécanisme, un circuit | S25: 0 | T25: 0 | U25: 0 | Y25: 0 | Z25: 0 | AA25: =(F25/$C$36)*' correction ex 1 et 2 '!$G$38 -> 0 | AB25: =(G25/$C$36)*' correction ex 1 et 2 '!$G$39 -> 0 | AC25: =(H25/$C$36)*' correction ex 1 et 2 '!$G$40 -> 0 | AD25: =(I25/$C$36)*' correction ex 1 et 2 '!$G$41 -> 0 | AE25: =(J25/$C$36)*' correction ex 1 et 2 '!$G$42 -> 0 | AF25: =(K25/$C$36)*' correction ex 1 et 2 '!$G$43 -> 0 | AG25: 0 | AJ25: =(L25/$S$36)*' correction ex 1 et 2 '!$M$38 -> 0 | AK25: =(M25/$S$36)*' correction ex 1 et 2 '!$M$39 -> 0 | AL25: =(N25/$S$36)*' correction ex 1 et 2 '!$M$40 -> 0 | AM25: =(O25/$S$36)*' correction ex 1 et 2 '!$M$41 -> 0 | AN25: =(P25/$S$36)*' correction ex 1 et 2 '!$M$42 -> 0 | AO25: =(Q25/$S$36)*' correction ex 1 et 2 '!$M$43 -> 0 | AP25: 0 | AQ25: 0 | AR25: 0
C26: M&R.7 | D26: Modéliser les mouvements | F26: 1 | S26: 0.03846153846 | T26: 1 | U26: 1 | Y26: 0.7692307692 | Z26: 0 | AA26: =(F26/$C$36)*' correction ex 1 et 2 '!$G$38 -> 0 | AB26: =(G26/$C$36)*' correction ex 1 et 2 '!$G$39 -> 0 | AC26: =(H26/$C$36)*' correction ex 1 et 2 '!$G$40 -> 0 | AD26: =(I26/$C$36)*' correction ex 1 et 2 '!$G$41 -> 0 | AE26: =(J26/$C$36)*' correction ex 1 et 2 '!$G$42 -> 0 | AF26: =(K26/$C$36)*' correction ex 1 et 2 '!$G$43 -> 0 | AG26: 0 | AJ26: =(L26/$S$36)*' correction ex 1 et 2 '!$M$38 -> 0 | AK26: =(M26/$S$36)*' correction ex 1 et 2 '!$M$39 -> 0 | AL26: =(N26/$S$36)*' correction ex 1 et 2 '!$M$40 -> 0 | AM26: =(O26/$S$36)*' correction ex 1 et 2 '!$M$41 -> 0 | AN26: =(P26/$S$36)*' correction ex 1 et 2 '!$M$42 -> 0 | AO26: =(Q26/$S$36)*' correction ex 1 et 2 '!$M$43 -> 0 | AP26: 0 | AQ26: 1 | AR26: 0
C27: M&R.8 | D27: Modéliser les actions mécaniques | G27: 1 | I27: 1 | S27: 0.07692307692 | T27: 2 | U27: 1 | Y27: 1.538461538 | Z27: 0 | AA27: =(F27/$C$36)*' correction ex 1 et 2 '!$G$38 -> 0 | AB27: =(G27/$C$36)*' correction ex 1 et 2 '!$G$39 -> 0 | AC27: =(H27/$C$36)*' correction ex 1 et 2 '!$G$40 -> 0 | AD27: =(I27/$C$36)*' correction ex 1 et 2 '!$G$41 -> 0 | AE27: =(J27/$C$36)*' correction ex 1 et 2 '!$G$42 -> 0 | AF27: =(K27/$C$36)*' correction ex 1 et 2 '!$G$43 -> 0 | AG27: 0 | AJ27: =(L27/$S$36)*' correction ex 1 et 2 '!$M$38 -> 0 | AK27: =(M27/$S$36)*' correction ex 1 et 2 '!$M$39 -> 0 | AL27: =(N27/$S$36)*' correction ex 1 et 2 '!$M$40 -> 0 | AM27: =(O27/$S$36)*' correction ex 1 et 2 '!$M$41 -> 0 | AN27: =(P27/$S$36)*' correction ex 1 et 2 '!$M$42 -> 0 | AO27: =(Q27/$S$36)*' correction ex 1 et 2 '!$M$43 -> 0 | AP27: 0 | AQ27: 2 | AR27: 0
C28: M&R.9 | D28: Caractériser les échanges d’informations | O28: 1 | S28: 0.0625 | T28: 1 | U28: 1 | Y28: 0 | Z28: 1.25 | AA28: =(F28/$C$36)*' correction ex 1 et 2 '!$G$38 -> 0 | AB28: =(G28/$C$36)*' correction ex 1 et 2 '!$G$39 -> 0 | AC28: =(H28/$C$36)*' correction ex 1 et 2 '!$G$40 -> 0 | AD28: =(I28/$C$36)*' correction ex 1 et 2 '!$G$41 -> 0 | AE28: =(J28/$C$36)*' correction ex 1 et 2 '!$G$42 -> 0 | AF28: =(K28/$C$36)*' correction ex 1 et 2 '!$G$43 -> 0 | AG28: 0 | AJ28: =(L28/$S$36)*' correction ex 1 et 2 '!$M$38 -> 0 | AK28: =(M28/$S$36)*' correction ex 1 et 2 '!$M$39 -> 0 | AL28: =(N28/$S$36)*' correction ex 1 et 2 '!$M$40 -> 0 | AM28: =(O28/$S$36)*' correction ex 1 et 2 '!$M$41 -> 0 | AN28: =(P28/$S$36)*' correction ex 1 et 2 '!$M$42 -> 0 | AO28: =(Q28/$S$36)*' correction ex 1 et 2 '!$M$43 -> 0 | AP28: 0 | AQ28: 0 | AR28: 1
C29: M&R.10 | D29: Associer un modèle à un système asservi | S29: 0 | T29: 0 | U29: 0 | Y29: 0 | Z29: 0 | AA29: =(F29/$C$36)*' correction ex 1 et 2 '!$G$38 -> 0 | AB29: =(G29/$C$36)*' correction ex 1 et 2 '!$G$39 -> 0 | AC29: =(H29/$C$36)*' correction ex 1 et 2 '!$G$40 -> 0 | AD29: =(I29/$C$36)*' correction ex 1 et 2 '!$G$41 -> 0 | AE29: =(J29/$C$36)*' correction ex 1 et 2 '!$G$42 -> 0 | AF29: =(K29/$C$36)*' correction ex 1 et 2 '!$G$43 -> 0 | AG29: 0 | AJ29: =(L29/$S$36)*' correction ex 1 et 2 '!$M$38 -> 0 | AK29: =(M29/$S$36)*' correction ex 1 et 2 '!$M$39 -> 0 | AL29: =(N29/$S$36)*' correction ex 1 et 2 '!$M$40 -> 0 | AM29: =(O29/$S$36)*' correction ex 1 et 2 '!$M$41 -> 0 | AN29: =(P29/$S$36)*' correction ex 1 et 2 '!$M$42 -> 0 | AO29: =(Q29/$S$36)*' correction ex 1 et 2 '!$M$43 -> 0 | AP29: 0 | AQ29: 0 | AR29: 0
C30: M&R.11 | D30: Déterminer les grandeurs flux (courant) et effort (tension) dans un circuit électrique | P30: 1 | S30: 0.0625 | T30: 1 | U30: 1 | Y30: 0 | Z30: 1.25 | AA30: =(F30/$C$36)*' correction ex 1 et 2 '!$G$38 -> 0 | AB30: =(G30/$C$36)*' correction ex 1 et 2 '!$G$39 -> 0 | AC30: =(H30/$C$36)*' correction ex 1 et 2 '!$G$40 -> 0 | AD30: =(I30/$C$36)*' correction ex 1 et 2 '!$G$41 -> 0 | AE30: =(J30/$C$36)*' correction ex 1 et 2 '!$G$42 -> 0 | AF30: =(K30/$C$36)*' correction ex 1 et 2 '!$G$43 -> 0 | AG30: 0 | AJ30: =(L30/$S$36)*' correction ex 1 et 2 '!$M$38 -> 0 | AK30: =(M30/$S$36)*' correction ex 1 et 2 '!$M$39 -> 0 | AL30: =(N30/$S$36)*' correction ex 1 et 2 '!$M$40 -> 0 | AM30: =(O30/$S$36)*' correction ex 1 et 2 '!$M$41 -> 0 | AN30: =(P30/$S$36)*' correction ex 1 et 2 '!$M$42 -> 0 | AO30: =(Q30/$S$36)*' correction ex 1 et 2 '!$M$43 -> 0 | AP30: 0 | AQ30: 0 | AR30: 1
C31: M&R.12 | D31: Déterminer les grandeurs géométriques et cinématiques d’un mécanisme | H31: 1 | S31: 0.03846153846 | T31: 1 | U31: 1 | Y31: 0.7692307692 | Z31: 0 | AA31: =(F31/$C$36)*' correction ex 1 et 2 '!$G$38 -> 0 | AB31: =(G31/$C$36)*' correction ex 1 et 2 '!$G$39 -> 0 | AC31: =(H31/$C$36)*' correction ex 1 et 2 '!$G$40 -> 0 | AD31: =(I31/$C$36)*' correction ex 1 et 2 '!$G$41 -> 0 | AE31: =(J31/$C$36)*' correction ex 1 et 2 '!$G$42 -> 0 | AF31: =(K31/$C$36)*' correction ex 1 et 2 '!$G$43 -> 0 | AG31: 0 | AJ31: =(L31/$S$36)*' correction ex 1 et 2 '!$M$38 -> 0 | AK31: =(M31/$S$36)*' correction ex 1 et 2 '!$M$39 -> 0 | AL31: =(N31/$S$36)*' correction ex 1 et 2 '!$M$40 -> 0 | AM31: =(O31/$S$36)*' correction ex 1 et 2 '!$M$41 -> 0 | AN31: =(P31/$S$36)*' correction ex 1 et 2 '!$M$42 -> 0 | AO31: =(Q31/$S$36)*' correction ex 1 et 2 '!$M$43 -> 0 | AP31: 0 | AQ31: 1 | AR31: 0
B32: EXPÉRIMENTER ET SIMULER | C32: E&S.1 | D32: Prévoir l’ordre de grandeur de la mesure | G32: 1 | P32: 1 | S32: 0.1009615385 | T32: 2 | U32: 1 | Y32: 0.7692307692 | Z32: 1.25 | AA32: =(F32/$C$36)*' correction ex 1 et 2 '!$G$38 -> 0 | AB32: =(G32/$C$36)*' correction ex 1 et 2 '!$G$39 -> 0 | AC32: =(H32/$C$36)*' correction ex 1 et 2 '!$G$40 -> 0 | AD32: =(I32/$C$36)*' correction ex 1 et 2 '!$G$41 -> 0 | AE32: =(J32/$C$36)*' correction ex 1 et 2 '!$G$42 -> 0 | AF32: =(K32/$C$36)*' correction ex 1 et 2 '!$G$43 -> 0 | AG32: 0 | AJ32: =(L32/$S$36)*' correction ex 1 et 2 '!$M$38 -> 0 | AK32: =(M32/$S$36)*' correction ex 1 et 2 '!$M$39 -> 0 | AL32: =(N32/$S$36)*' correction ex 1 et 2 '!$M$40 -> 0 | AM32: =(O32/$S$36)*' correction ex 1 et 2 '!$M$41 -> 0 | AN32: =(P32/$S$36)*' correction ex 1 et 2 '!$M$42 -> 0 | AO32: =(Q32/$S$36)*' correction ex 1 et 2 '!$M$43 -> 0 | AP32: 0 | AQ32: 1 | AR32: 1
C33: E&S.2 | D33: Identifier les erreurs de mesure | O33: 1 | S33: 0.0625 | T33: 1 | U33: 1 | Y33: 0 | Z33: 1.25 | AA33: =(F33/$C$36)*' correction ex 1 et 2 '!$G$38 -> 0 | AB33: =(G33/$C$36)*' correction ex 1 et 2 '!$G$39 -> 0 | AC33: =(H33/$C$36)*' correction ex 1 et 2 '!$G$40 -> 0 | AD33: =(I33/$C$36)*' correction ex 1 et 2 '!$G$41 -> 0 | AE33: =(J33/$C$36)*' correction ex 1 et 2 '!$G$42 -> 0 | AF33: =(K33/$C$36)*' correction ex 1 et 2 '!$G$43 -> 0 | AG33: 0 | AJ33: =(L33/$S$36)*' correction ex 1 et 2 '!$M$38 -> 0 | AK33: =(M33/$S$36)*' correction ex 1 et 2 '!$M$39 -> 0 | AL33: =(N33/$S$36)*' correction ex 1 et 2 '!$M$40 -> 0 | AM33: =(O33/$S$36)*' correction ex 1 et 2 '!$M$41 -> 0 | AN33: =(P33/$S$36)*' correction ex 1 et 2 '!$M$42 -> 0 | AO33: =(Q33/$S$36)*' correction ex 1 et 2 '!$M$43 -> 0 | AP33: 0 | AQ33: 0 | AR33: 1
C34: E&S.3 | D34: Relever les grandeurs caractéristiques d’un protocole de communication | S34: 0 | T34: 0 | U34: 0 | Y34: 0 | Z34: 0 | AA34: =(F34/$C$36)*' correction ex 1 et 2 '!$G$38 -> 0 | AB34: =(G34/$C$36)*' correction ex 1 et 2 '!$G$39 -> 0 | AC34: =(H34/$C$36)*' correction ex 1 et 2 '!$G$40 -> 0 | AD34: =(I34/$C$36)*' correction ex 1 et 2 '!$G$41 -> 0 | AE34: =(J34/$C$36)*' correction ex 1 et 2 '!$G$42 -> 0 | AF34: =(K34/$C$36)*' correction ex 1 et 2 '!$G$43 -> 0 | AG34: 0 | AJ34: =(L34/$S$36)*' correction ex 1 et 2 '!$M$38 -> 0 | AK34: =(M34/$S$36)*' correction ex 1 et 2 '!$M$39 -> 0 | AL34: =(N34/$S$36)*' correction ex 1 et 2 '!$M$40 -> 0 | AM34: =(O34/$S$36)*' correction ex 1 et 2 '!$M$41 -> 0 | AN34: =(P34/$S$36)*' correction ex 1 et 2 '!$M$42 -> 0 | AO34: =(Q34/$S$36)*' correction ex 1 et 2 '!$M$43 -> 0 | AP34: 0 | AQ34: 0 | AR34: 0
B35: COMMUNIQUER | C35: C.1 | D35: Rendre compte de résultats | Q35: 1 | S35: 0.0625 | T35: =12-COUNTBLANK(F35:Q35) -> 1 | U35: 1 | Y35: 0 | Z35: 1.25 | AA35: =(F35/$C$36)*' correction ex 1 et 2 '!$G$38 -> 0 | AB35: =(G35/$C$36)*' correction ex 1 et 2 '!$G$39 -> 0 | AC35: =(H35/$C$36)*' correction ex 1 et 2 '!$G$40 -> 0 | AD35: =(I35/$C$36)*' correction ex 1 et 2 '!$G$41 -> 0 | AE35: =(J35/$C$36)*' correction ex 1 et 2 '!$G$42 -> 0 | AF35: =(K35/$C$36)*' correction ex 1 et 2 '!$G$43 -> 0 | AG35: 0 | AJ35: =(L35/$S$36)*' correction ex 1 et 2 '!$M$38 -> 0 | AK35: =(M35/$S$36)*' correction ex 1 et 2 '!$M$39 -> 0 | AL35: =(N35/$S$36)*' correction ex 1 et 2 '!$M$40 -> 0 | AM35: =(O35/$S$36)*' correction ex 1 et 2 '!$M$41 -> 0 | AN35: =(P35/$S$36)*' correction ex 1 et 2 '!$M$42 -> 0 | AO35: =(Q35/$S$36)*' correction ex 1 et 2 '!$M$43 -> 0 | AP35: 0 | AQ35: =SUM(F35:K35) -> 0 | AR35: 1
C36: =SUM(F11:K35) -> 13 | D36: =SUM(F36:K36) -> 13 | F36: =SUM(F11:F35) -> 1 | G36: =SUM(G11:G35) -> 3 | H36: =SUM(H11:H35) -> 3 | I36: 3 | J36: 3 | K36: 0 | L36: =SUM(L11:L35) -> 1 | M36: =SUM(M11:M35) -> 1 | N36: 1 | O36: 2 | P36: 2 | Q36: 1 | R36: =SUM(L36:Q36) -> 8 | S36: =SUM(L11:Q35) -> 8 | T36: =SUM(T11:T35) -> 21 | U36: =SUM(U11:U35) -> 17
D37: Poids de la question dans l'exercice | F37: =(F36/$D$36) -> 0.07692307692 | G37: =(G36/$D$36) -> 0.2307692308 | H37: =(H36/$D$36) -> 0.2307692308 | I37: 0.2307692308 | J37: 0.2307692308 | K37: 0 | L37: =(L36/$S$36) -> 0.125 | M37: =(M36/$S$36) -> 0.125 | N37: 0.125 | O37: 0.25 | P37: 0.25 | Q37: 0.125 | S37: =SUM(S11:S35) -> 1 | T37: =SUM(F37:K37) -> 1 | U37: =SUM(L37:Q37) -> 1 | AA37: =SUM(AA11:AA35) -> 0 | AB37: =SUM(AB11:AB35) -> 0 | AC37: 0 | AD37: 0 | AE37: 0 | AF37: 0 | AJ37: =SUM(AJ11:AJ35) -> 0 | AK37: =SUM(AK11:AK35) -> 0 | AL37: 0 | AM37: 0 | AN37: 0 | AO37: 0
D39: des compétences évaluées dans la question % | F39: =(F45)/25 -> 0.04 | G39: =(G45)/25 -> 0.12 | H39: =(H45)/25 -> 0.12 | I39: =(I45)/25 -> 0.12 | J39: 0.12 | K39: 0 | L39: 0.04 | M39: 0.04 | N39: 0.04 | O39: 0.08 | P39: 0.08 | Q39: 0.04
F42: =IF(F43<0.5,1,"") ->  | G42: =COUNTBLANK(G11:G35) -> 22 | H42: 22 | I42: 22 | J42: 22 | K42: 25 | L42: 24 | M42: 24 | N42: 24 | O42: 23 | P42: 23 | Q42: 24
D43: Pourcentage de compétences évaluées par le sujet | F43: =U36/25 -> 0.68
D44: ='Fiche d''évaluation'!D3 -> 
F45: =25-COUNTBLANK(F11:F35) -> 1 | G45: 3 | H45: 3 | I45: 3 | J45: 3 | K45: 0 | L45: 1 | M45: 1 | N45: 1 | O45: 2 | P45: 2 | Q45: 1
F46: =150-COUNTBLANK($F$11:$K$35) -> 13 | G46: =150-COUNTBLANK($F$11:$K$35) -> 13 | H46: 13 | I46: 13 | J46: 13 | K46: 13 | L46: =150-COUNTBLANK($L$11:$Q$35) -> 8 | M46: =150-COUNTBLANK($L$11:$Q$35) -> 8 | N46: 8 | O46: 8 | P46: 8 | Q46: 8 | T46: =SUM(F46:Q46) -> 126
F48: =(SUM(F11:F35)/$C$36)*10 -> 0.7692307692 | G48: =(SUM(G11:G35)/$C$36)*10 -> 2.307692308 | H48: 2.307692308 | I48: 2.307692308 | J48: 2.307692308 | K48: 0 | L48: =(SUM(L11:L35)/$S$36)*10 -> 1.25 | M48: =(SUM(M11:M35)/$S$36)*10 -> 1.25 | N48: 1.25 | O48: 2.5 | P48: 2.5 | Q48: 1.25
C51: E&S.2' | D51: Conduire des essais en toute sécurité à partir d’un protocole expérimental fourni ???
C52: C.2 | D52: Collecter et extraire des données Comparer, traiter, organiser et synthétiser les informations pertinentes ???
